[Event "December 12 Late 2023"]
[Site "https://www.chess.com"]
[Date "2023.12.12"]
[Round "1"]
[White "Goncalves, Davi Sulzbacher"]
[Black "Kamsky, Gata"]
[Result "0-1"]
[Board "46"]
[TimeControl "180+1"]
[WhiteFideId "2154510"]
[BlackFideId "2000024"]
[WhiteElo "2452"]
[BlackElo "2857"]
[WhiteTeam "BRA"]
[BlackTeam "USA"]
[WhiteClock "0:00:00"]
[BlackClock "0:00:12"]

1. d4 {[%clk 0:03:00]}  Nf6 {[%clk 0:02:54]} 2. c4 {[%clk 0:02:59]}  e6 {[%clk 0:02:54]} 3. g3 {[%clk 0:02:59]}  d5 {[%clk 0:02:51]} 4. Nf3 {[%clk 0:02:59]}  Bb4+ {[%clk 0:02:45]} 5. Bd2 {[%clk 0:02:58]}  Be7 {[%clk 0:02:45]} 6. Bg2 {[%clk 0:02:58]}  c6 {[%clk 0:02:44]} 7. O-O {[%clk 0:02:58]}  Nbd7 {[%clk 0:02:44]} 8. Qc2 {[%clk 0:02:58]}  Ne4 {[%clk 0:02:43]} 9. Bf4 {[%clk 0:02:44]}  g5 {[%clk 0:02:32]} 10. Bc1 {[%clk 0:02:40]}  f5 {[%clk 0:02:28]} 11. Nc3 {[%clk 0:02:30]}  g4 {[%clk 0:02:25]} 12. Nd2 {[%clk 0:02:26]}  Ndf6 {[%clk 0:02:18]} 13. Ndxe4 {[%clk 0:02:12]}  dxe4 {[%clk 0:02:14]} 14. Be3 {[%clk 0:02:01]}  h5 {[%clk 0:02:11]} 15. Rad1 {[%clk 0:01:58]}  h4 {[%clk 0:02:11]} 16. f3 {[%clk 0:01:53]}  gxf3 {[%clk 0:02:08]} 17. exf3 {[%clk 0:01:53]}  hxg3 {[%clk 0:02:08]} 18. hxg3 {[%clk 0:01:53]}  Bd6 {[%clk 0:01:46]} 19. fxe4 {[%clk 0:00:59]}  Bxg3 {[%clk 0:01:43]} 20. Rf3 {[%clk 0:01:00]}  Bh2+ {[%clk 0:01:25]} 21. Kf1 {[%clk 0:00:59]}  Bd7 {[%clk 0:00:39]} 22. d5 {[%clk 0:00:50]}  cxd5 {[%clk 0:00:36]} 23. cxd5 {[%clk 0:00:49]}  e5 {[%clk 0:00:34]} 24. exf5 {[%clk 0:00:34]}  Qc7 {[%clk 0:00:34]} 25. Bg5 {[%clk 0:00:29]}  Qc4+ {[%clk 0:00:31]} 26. Ke1 {[%clk 0:00:24]}  e4 {[%clk 0:00:20]} 27. Re3 {[%clk 0:00:19]}  O-O {[%clk 0:00:18]} 28. Rh3 {[%clk 0:00:13]}  Be5 {[%clk 0:00:17]} 29. Bxe4 {[%clk 0:00:07]}  Rae8 {[%clk 0:00:15]} 30. Qg2 {[%clk 0:00:06]}  Bxc3+ {[%clk 0:00:15]} 31. Bd2+ {[%clk 0:00:06]}  Kf7 {[%clk 0:00:14]} 32. Qg6+ {[%clk 0:00:04]}  Ke7 {[%clk 0:00:14]} 33. Bxc3 {[%clk 0:00:03]}  Qxe4+ {[%clk 0:00:14]} 34. Kd2 {[%clk 0:00:03]}  Bxf5 {[%clk 0:00:13]} 35. Qg7+ {[%clk 0:00:02]}  Kd8 {[%clk 0:00:13]} 36. Bxf6+ {[%clk 0:00:03]}  Kc8 {[%clk 0:00:13]} 37. Be7 {[%clk 0:00:02]}  Qc2+ {[%clk 0:00:12]} 38. Ke3 {[%clk 0:00:00]}  Bxh3 {[%clk 0:00:12]} 0-1

[Event "December 12 Late 2023"]
[Site "https://www.chess.com"]
[Date "2023.12.12"]
[Round "1"]
[White "Riehle, Marco"]
[Black "Belli, Giorgio"]
[Result "1-0"]
[Board "47"]
[TimeControl "180+1"]
[WhiteFideId "12904392"]
[BlackFideId "2808833"]
[WhiteElo "2856"]
[BlackElo "2450"]
[WhiteTeam "GER"]
[BlackTeam "ITA"]
[WhiteClock "0:00:22"]
[BlackClock "0:00:18"]

1. e4 {[%clk 0:02:57]}  c5 {[%clk 0:02:59]} 2. a3 {[%clk 0:02:57]}  g6 {[%clk 0:02:43]} 3. h4 {[%clk 0:02:56]}  h5 {[%clk 0:02:34]} 4. Nc3 {[%clk 0:02:55]}  Bg7 {[%clk 0:02:28]} 5. Bc4 {[%clk 0:02:56]}  Nc6 {[%clk 0:02:20]} 6. d3 {[%clk 0:02:56]}  e6 {[%clk 0:02:18]} 7. Bg5 {[%clk 0:02:55]}  Nge7 {[%clk 0:02:17]} 8. Nge2 {[%clk 0:02:54]}  f6 {[%clk 0:02:11]} 9. Bf4 {[%clk 0:02:54]}  d5 {[%clk 0:02:04]} 10. Bb3 {[%clk 0:02:53]}  e5 {[%clk 0:02:00]} 11. Bg3 {[%clk 0:02:38]}  d4 {[%clk 0:01:55]} 12. Nb1 {[%clk 0:02:36]}  Qa5+ {[%clk 0:01:50]} 13. Nd2 {[%clk 0:02:33]}  Bh6 {[%clk 0:01:44]} 14. f4 {[%clk 0:02:32]}  Bg4 {[%clk 0:01:43]} 15. O-O {[%clk 0:02:32]}  Rf8 {[%clk 0:01:32]} 16. Nc4 {[%clk 0:02:14]}  Qc7 {[%clk 0:01:32]} 17. fxe5 {[%clk 0:02:12]}  fxe5 {[%clk 0:01:33]} 18. Rxf8+ {[%clk 0:02:12]}  Kxf8 {[%clk 0:01:34]} 19. a4 {[%clk 0:01:44]}  b6 {[%clk 0:01:23]} 20. Kh2 {[%clk 0:01:38]}  Kg7 {[%clk 0:01:23]} 21. Qe1 {[%clk 0:01:37]}  Rf8 {[%clk 0:01:18]} 22. Ng1 {[%clk 0:01:37]}  Bf4 {[%clk 0:01:13]} 23. Nh3 {[%clk 0:01:31]}  Bxh3 {[%clk 0:01:12]} 24. Kxh3 {[%clk 0:01:31]}  Qd7+ {[%clk 0:01:12]} 25. Kh2 {[%clk 0:01:31]}  Qg4 {[%clk 0:01:12]} 26. Bxf4 {[%clk 0:01:26]}  exf4 {[%clk 0:01:02]} 27. Qf2 {[%clk 0:01:03]}  Ng8 {[%clk 0:00:43]} 28. Nd2 {[%clk 0:00:55]}  Ne5 {[%clk 0:00:39]} 29. Nf3 {[%clk 0:00:55]}  Nxf3+ {[%clk 0:00:38]} 30. gxf3 {[%clk 0:00:56]}  Qd7 {[%clk 0:00:37]} 31. Bxg8 {[%clk 0:00:54]}  Rxg8 {[%clk 0:00:35]} 32. b3 {[%clk 0:00:55]}  Qe7 {[%clk 0:00:34]} 33. Rg1 {[%clk 0:00:54]}  Kh7 {[%clk 0:00:34]} 34. Rg5 {[%clk 0:00:54]}  Rf8 {[%clk 0:00:29]} 35. Qg2 {[%clk 0:00:54]}  Rf6 {[%clk 0:00:29]} 36. Qh3 {[%clk 0:00:53]}  Qe6 {[%clk 0:00:28]} 37. Qxe6 {[%clk 0:00:50]}  Rxe6 {[%clk 0:00:29]} 38. Rd5 {[%clk 0:00:50]}  Re7 {[%clk 0:00:29]} 39. a5 {[%clk 0:00:49]}  Kg7 {[%clk 0:00:27]} 40. a6 {[%clk 0:00:49]}  Kf6 {[%clk 0:00:27]} 41. Kg2 {[%clk 0:00:46]}  Ke6 {[%clk 0:00:24]} 42. Kf2 {[%clk 0:00:45]}  Kf6 {[%clk 0:00:25]} 43. b4 {[%clk 0:00:45]}  Rc7 {[%clk 0:00:24]} 44. b5 {[%clk 0:00:41]}  Re7 {[%clk 0:00:23]} 45. Ke2 {[%clk 0:00:41]}  Rg7 {[%clk 0:00:23]} 46. Rg5 {[%clk 0:00:36]}  Re7 {[%clk 0:00:23]} 47. Kd2 {[%clk 0:00:36]}  Rd7 {[%clk 0:00:24]} 48. c3 {[%clk 0:00:36]}  dxc3+ {[%clk 0:00:23]} 49. Kxc3 {[%clk 0:00:37]}  Re7 {[%clk 0:00:23]} 50. Rd5 {[%clk 0:00:34]}  Re5 {[%clk 0:00:18]} 51. Rd6+ {[%clk 0:00:30]}  Re6 {[%clk 0:00:18]} 52. Rd5 {[%clk 0:00:27]}  Re5 {[%clk 0:00:19]} 53. Rd8 {[%clk 0:00:27]}  Re7 {[%clk 0:00:19]} 54. d4 {[%clk 0:00:25]}  cxd4+ {[%clk 0:00:19]} 55. Kxd4 {[%clk 0:00:26]}  g5 {[%clk 0:00:20]} 56. Rf8+ {[%clk 0:00:18]}  Kg7 {[%clk 0:00:20]} 57. Rf5 {[%clk 0:00:19]}  gxh4 {[%clk 0:00:20]} 58. Rxh5 {[%clk 0:00:19]}  Rd7+ {[%clk 0:00:21]} 59. Ke5 {[%clk 0:00:19]}  Rd3 {[%clk 0:00:19]} 60. Kxf4 {[%clk 0:00:19]}  Rb3 {[%clk 0:00:20]} 61. Kg4 {[%clk 0:00:18]}  Kf6 {[%clk 0:00:19]} 62. Rxh4 {[%clk 0:00:17]}  Rxb5 {[%clk 0:00:19]} 63. Rh7 {[%clk 0:00:18]}  Rg5+ {[%clk 0:00:17]} 64. Kf4 {[%clk 0:00:18]}  Rg7 {[%clk 0:00:18]} 65. e5+ {[%clk 0:00:18]}  Kg6 {[%clk 0:00:18]} 66. Rxg7+ {[%clk 0:00:18]}  Kxg7 {[%clk 0:00:18]} 67. Ke4 {[%clk 0:00:19]}  Kf7 {[%clk 0:00:19]} 68. f4 {[%clk 0:00:19]}  Ke6 {[%clk 0:00:20]} 69. f5+ {[%clk 0:00:20]}  Ke7 {[%clk 0:00:20]} 70. Kd5 {[%clk 0:00:20]}  Kd7 {[%clk 0:00:21]} 71. e6+ {[%clk 0:00:21]}  Ke7 {[%clk 0:00:18]} 72. Ke5 {[%clk 0:00:22]} 1-0

[Event "December 12 Late 2023"]
[Site "https://www.chess.com"]
[Date "2023.12.12"]
[Round "1"]
[White "Mikaelyan, Arman"]
[Black "Urbina Perez, Juan Antonio"]
[Result "1/2-1/2"]
[Board "49"]
[TimeControl "180+1"]
[WhiteFideId "13304852"]
[BlackFideId "2217368"]
[WhiteElo "2848"]
[BlackElo "2445"]
[WhiteTeam "ARM"]
[BlackTeam "ESP"]
[WhiteClock "0:00:05"]
[BlackClock "0:00:18"]

1. d4 {[%clk 0:02:44]}  Nf6 {[%clk 0:02:57]} 2. c4 {[%clk 0:02:42]}  d6 {[%clk 0:02:57]} 3. Nf3 {[%clk 0:02:41]}  g6 {[%clk 0:02:56]} 4. g3 {[%clk 0:02:42]}  Bg7 {[%clk 0:02:55]} 5. Bg2 {[%clk 0:02:43]}  O-O {[%clk 0:02:55]} 6. O-O {[%clk 0:02:44]}  Bf5 {[%clk 0:02:54]} 7. Nc3 {[%clk 0:02:42]}  Ne4 {[%clk 0:02:54]} 8. Qb3 {[%clk 0:02:40]}  Nxc3 {[%clk 0:02:53]} 9. bxc3 {[%clk 0:02:41]}  Be4 {[%clk 0:02:52]} 10. a4 {[%clk 0:02:14]}  c5 {[%clk 0:02:48]} 11. dxc5 {[%clk 0:02:05]}  dxc5 {[%clk 0:02:49]} 12. Be3 {[%clk 0:02:01]}  b6 {[%clk 0:02:47]} 13. a5 {[%clk 0:01:58]}  Nd7 {[%clk 0:02:28]} 14. Rfd1 {[%clk 0:01:55]}  Qc7 {[%clk 0:02:18]} 15. Bf4 {[%clk 0:01:52]}  Qb7 {[%clk 0:02:14]} 16. a6 {[%clk 0:01:48]}  Qc6 {[%clk 0:02:07]} 17. Qb5 {[%clk 0:01:29]}  Rad8 {[%clk 0:01:59]} 18. Rac1 {[%clk 0:01:05]}  Rfe8 {[%clk 0:01:30]} 19. Rd2 {[%clk 0:01:01]}  e5 {[%clk 0:01:22]} 20. Bg5 {[%clk 0:00:58]}  f6 {[%clk 0:01:19]} 21. Be3 {[%clk 0:00:57]}  Nb8 {[%clk 0:01:11]} 22. Rcd1 {[%clk 0:00:57]}  Rxd2 {[%clk 0:01:07]} 23. Rxd2 {[%clk 0:00:58]}  Kf8 {[%clk 0:01:05]} 24. Ne1 {[%clk 0:00:56]}  Bxg2 {[%clk 0:01:04]} 25. Nxg2 {[%clk 0:00:57]}  Qxb5 {[%clk 0:01:02]} 26. cxb5 {[%clk 0:00:58]}  Ke7 {[%clk 0:01:02]} 27. c4 {[%clk 0:00:51]}  Rd8 {[%clk 0:01:01]} 28. Rxd8 {[%clk 0:00:47]}  Kxd8 {[%clk 0:01:02]} 29. Ne1 {[%clk 0:00:47]}  Bf8 {[%clk 0:01:00]} 30. Nd3 {[%clk 0:00:47]}  Bd6 {[%clk 0:00:58]} 31. f4 {[%clk 0:00:45]}  Nd7 {[%clk 0:00:53]} 32. fxe5 {[%clk 0:00:40]}  Nxe5 {[%clk 0:00:54]} 33. Nxe5 {[%clk 0:00:38]}  Bxe5 {[%clk 0:00:55]} 34. Kf2 {[%clk 0:00:38]}  Bd6 {[%clk 0:00:53]} 35. Kf3 {[%clk 0:00:39]}  Kd7 {[%clk 0:00:53]} 36. h3 {[%clk 0:00:33]}  Ke6 {[%clk 0:00:53]} 37. g4 {[%clk 0:00:33]}  g5 {[%clk 0:00:51]} 38. Ke4 {[%clk 0:00:31]}  h6 {[%clk 0:00:50]} 39. Bd2 {[%clk 0:00:31]}  Be7 {[%clk 0:00:50]} 40. Bc3 {[%clk 0:00:30]}  Bd6 {[%clk 0:00:50]} 41. Bd2 {[%clk 0:00:28]}  Be5 {[%clk 0:00:47]} 42. Be1 {[%clk 0:00:28]}  Bd6 {[%clk 0:00:43]} 43. Bf2 {[%clk 0:00:28]}  Be7 {[%clk 0:00:42]} 44. Kd3 {[%clk 0:00:25]}  Bd6 {[%clk 0:00:42]} 45. h4 {[%clk 0:00:25]}  Bc7 {[%clk 0:00:41]} 46. h5 {[%clk 0:00:25]}  Bd6 {[%clk 0:00:40]} 47. Ke4 {[%clk 0:00:25]}  Bc7 {[%clk 0:00:41]} 48. Be3 {[%clk 0:00:22]}  Bd6 {[%clk 0:00:41]} 49. Bd2 {[%clk 0:00:21]}  Be5 {[%clk 0:00:41]} 50. Be1 {[%clk 0:00:20]}  Bc7 {[%clk 0:00:30]} 51. Kd3 {[%clk 0:00:19]}  Be5 {[%clk 0:00:29]} 52. Bf2 {[%clk 0:00:20]}  Bd6 {[%clk 0:00:29]} 53. Ke3 {[%clk 0:00:19]}  Bf4+ {[%clk 0:00:27]} 54. Kf3 {[%clk 0:00:20]}  Bd6 {[%clk 0:00:27]} 55. Be3 {[%clk 0:00:16]}  Be5 {[%clk 0:00:27]} 56. Ke4 {[%clk 0:00:12]}  Bd6 {[%clk 0:00:26]} 57. Bd2 {[%clk 0:00:12]}  Be5 {[%clk 0:00:25]} 58. Bc1 {[%clk 0:00:13]}  Bd6 {[%clk 0:00:25]} 59. Ba3 {[%clk 0:00:13]}  Be7 {[%clk 0:00:23]} 60. e3 {[%clk 0:00:13]}  Bd6 {[%clk 0:00:23]} 61. Bb2 {[%clk 0:00:14]}  Be5 {[%clk 0:00:22]} 62. Bc1 {[%clk 0:00:12]}  Bd6 {[%clk 0:00:21]} 63. Bd2 {[%clk 0:00:13]}  Be5 {[%clk 0:00:22]} 64. Be1 {[%clk 0:00:13]}  Bd6 {[%clk 0:00:22]} 65. Bc3 {[%clk 0:00:13]}  Be5 {[%clk 0:00:22]} 66. Be1 {[%clk 0:00:11]}  Bd6 {[%clk 0:00:22]} 67. Kd3 {[%clk 0:00:12]}  Be5 {[%clk 0:00:22]} 68. Bf2 {[%clk 0:00:12]}  Bd6 {[%clk 0:00:22]} 69. Ke2 {[%clk 0:00:11]}  Be5 {[%clk 0:00:22]} 70. Kf3 {[%clk 0:00:12]}  Bd6 {[%clk 0:00:23]} 71. Be1 {[%clk 0:00:06]}  Be5 {[%clk 0:00:23]} 72. Bd2 {[%clk 0:00:06]}  Bd6 {[%clk 0:00:23]} 73. e4 {[%clk 0:00:06]}  Be5 {[%clk 0:00:23]} 74. Be3 {[%clk 0:00:07]}  Bd6 {[%clk 0:00:23]} 75. Ke2 {[%clk 0:00:07]}  Ke5 {[%clk 0:00:21]} 76. Kd3 {[%clk 0:00:07]}  Ke6 {[%clk 0:00:22]} 77. Bd2 {[%clk 0:00:08]}  Ke5 {[%clk 0:00:22]} 78. Bc3+ {[%clk 0:00:08]}  Ke6 {[%clk 0:00:22]} 79. Bb2 {[%clk 0:00:08]}  Be5 {[%clk 0:00:22]} 80. Bc1 {[%clk 0:00:08]}  Bd6 {[%clk 0:00:22]} 81. Bd2 {[%clk 0:00:08]}  Ke5 {[%clk 0:00:21]} 82. Be1 {[%clk 0:00:08]}  Ke6 {[%clk 0:00:21]} 83. Bc3 {[%clk 0:00:08]}  Be5 {[%clk 0:00:21]} 84. Bd2 {[%clk 0:00:09]}  Bd6 {[%clk 0:00:21]} 85. Be3 {[%clk 0:00:09]}  Ke5 {[%clk 0:00:21]} 86. Bg1 {[%clk 0:00:08]}  Ke6 {[%clk 0:00:21]} 87. Bf2 {[%clk 0:00:08]}  Ke5 {[%clk 0:00:21]} 88. Bg3+ {[%clk 0:00:08]}  Ke6 {[%clk 0:00:21]} 89. Be1 {[%clk 0:00:08]}  Ke5 {[%clk 0:00:20]} 90. Ke3 {[%clk 0:00:09]}  Ke6 {[%clk 0:00:20]} 91. Kf3 {[%clk 0:00:08]}  Ke5 {[%clk 0:00:19]} 92. Bc3+ {[%clk 0:00:08]}  Ke6 {[%clk 0:00:20]} 93. Bb2 {[%clk 0:00:06]}  Be5 {[%clk 0:00:20]} 94. Bc1 {[%clk 0:00:05]}  Bd6 {[%clk 0:00:20]} 95. Be3 {[%clk 0:00:06]}  Ke5 {[%clk 0:00:19]} 96. Bg1 {[%clk 0:00:06]}  Ke6 {[%clk 0:00:19]} 97. Ke2 {[%clk 0:00:06]}  Ke5 {[%clk 0:00:19]} 98. Kd3 {[%clk 0:00:06]}  Ke6 {[%clk 0:00:19]} 99. Bf2 {[%clk 0:00:06]}  Be5 {[%clk 0:00:18]} 100. Be3 {[%clk 0:00:05]}  Bd6 {[%clk 0:00:18]} 101. Bd2 {[%clk 0:00:05]} 1/2-1/2

[Event "December 12 Late 2023"]
[Site "https://www.chess.com"]
[Date "2023.12.12"]
[Round "1"]
[White "Yandarbiev, Ruslan"]
[Black "Hong, Andrew"]
[Result "1-0"]
[Board "52"]
[TimeControl "180+1"]
[WhiteFideId "4115023"]
[BlackFideId "2099438"]
[WhiteElo "2440"]
[BlackElo "2839"]
[WhiteTeam "RUS"]
[BlackTeam "USA"]
[WhiteClock "0:00:44"]
[BlackClock "0:00:02"]

1. c4 {[%clk 0:02:58]}  e5 {[%clk 0:02:59]} 2. g3 {[%clk 0:02:58]}  Nf6 {[%clk 0:02:58]} 3. Bg2 {[%clk 0:02:57]}  c6 {[%clk 0:02:58]} 4. d4 {[%clk 0:02:57]}  exd4 {[%clk 0:02:57]} 5. Qxd4 {[%clk 0:02:58]}  d5 {[%clk 0:02:57]} 6. Nc3 {[%clk 0:02:58]}  dxc4 {[%clk 0:02:56]} 7. Qxc4 {[%clk 0:02:44]}  Be6 {[%clk 0:02:56]} 8. Qa4 {[%clk 0:02:31]}  Nbd7 {[%clk 0:02:49]} 9. Nf3 {[%clk 0:02:31]}  Bc5 {[%clk 0:02:46]} 10. O-O {[%clk 0:02:30]}  O-O {[%clk 0:02:43]} 11. Bf4 {[%clk 0:02:28]}  Qb6 {[%clk 0:02:42]} 12. Qc2 {[%clk 0:02:26]}  Qa6 {[%clk 0:02:37]} 13. Rfd1 {[%clk 0:02:19]}  h6 {[%clk 0:02:36]} 14. Bd6 {[%clk 0:02:18]}  Rfd8 {[%clk 0:02:30]} 15. Bxc5 {[%clk 0:02:16]}  Nxc5 {[%clk 0:02:31]} 16. Ne5 {[%clk 0:02:16]}  Ng4 {[%clk 0:02:08]} 17. Nxg4 {[%clk 0:01:53]}  Bxg4 {[%clk 0:02:09]} 18. h3 {[%clk 0:01:50]}  Be6 {[%clk 0:02:06]} 19. b4 {[%clk 0:01:39]}  Nd7 {[%clk 0:02:03]} 20. Ne4 {[%clk 0:01:37]}  Qb6 {[%clk 0:01:59]} 21. a3 {[%clk 0:01:34]}  Bd5 {[%clk 0:01:56]} 22. Rac1 {[%clk 0:01:25]}  a5 {[%clk 0:01:54]} 23. Nc5 {[%clk 0:01:17]}  axb4 {[%clk 0:01:37]} 24. axb4 {[%clk 0:01:16]}  Qxb4 {[%clk 0:00:41]} 25. Bxd5 {[%clk 0:01:06]}  cxd5 {[%clk 0:00:42]} 26. Rxd5 {[%clk 0:01:07]}  Rac8 {[%clk 0:00:42]} 27. Qd1 {[%clk 0:01:02]}  Qa3 {[%clk 0:00:26]} 28. Rd3 {[%clk 0:00:55]}  Qb2 {[%clk 0:00:19]} 29. Rc2 {[%clk 0:00:52]}  Qb5 {[%clk 0:00:05]} 30. Nxd7 {[%clk 0:00:52]}  Rxc2 {[%clk 0:00:03]} 31. Nf6+ {[%clk 0:00:52]}  gxf6 {[%clk 0:00:03]} 32. Rxd8+ {[%clk 0:00:51]}  Kg7 {[%clk 0:00:03]} 33. Qxc2 {[%clk 0:00:52]}  Qe5 {[%clk 0:00:02]} 34. Qd3 {[%clk 0:00:47]}  b5 {[%clk 0:00:02]} 35. Rd4 {[%clk 0:00:45]}  Qc5 {[%clk 0:00:01]} 36. Rg4+ {[%clk 0:00:44]}  Kf8 {[%clk 0:00:02]} 37. Qd8# {[%clk 0:00:44]} 1-0

[Event "December 12 Late 2023"]
[Site "https://www.chess.com"]
[Date "2023.12.12"]
[Round "1"]
[White "Holt, Conrad"]
[Black "Federzoni, Enzo"]
[Result "0-1"]
[Board "55"]
[TimeControl "180+1"]
[WhiteFideId "2034387"]
[BlackFideId "2173301"]
[WhiteElo "2812"]
[BlackElo "2434"]
[WhiteTeam "USA"]
[BlackTeam "BRA"]
[WhiteClock "0:00:08"]
[BlackClock "0:00:28"]

1. d4 {[%clk 0:02:58]}  d5 {[%clk 0:02:57]} 2. c4 {[%clk 0:02:55]}  e6 {[%clk 0:02:57]} 3. Nc3 {[%clk 0:02:55]}  Nf6 {[%clk 0:02:55]} 4. cxd5 {[%clk 0:02:55]}  exd5 {[%clk 0:02:55]} 5. Bg5 {[%clk 0:02:53]}  Be7 {[%clk 0:02:55]} 6. e3 {[%clk 0:02:53]}  O-O {[%clk 0:02:53]} 7. Bd3 {[%clk 0:02:53]}  c6 {[%clk 0:02:50]} 8. Qc2 {[%clk 0:02:48]}  Nbd7 {[%clk 0:02:49]} 9. Nge2 {[%clk 0:02:45]}  h6 {[%clk 0:02:49]} 10. Bh4 {[%clk 0:02:45]}  Ne4 {[%clk 0:02:44]} 11. Bxe7 {[%clk 0:02:44]}  Qxe7 {[%clk 0:02:39]} 12. Nxe4 {[%clk 0:02:39]}  dxe4 {[%clk 0:02:36]} 13. Bxe4 {[%clk 0:02:40]}  Nf6 {[%clk 0:02:15]} 14. Bf3 {[%clk 0:02:40]}  Nd5 {[%clk 0:02:15]} 15. O-O {[%clk 0:02:37]}  Be6 {[%clk 0:02:13]} 16. a3 {[%clk 0:02:32]}  g5 {[%clk 0:02:13]} 17. Nc3 {[%clk 0:02:26]}  Nxc3 {[%clk 0:02:10]} 18. bxc3 {[%clk 0:02:25]}  g4 {[%clk 0:02:11]} 19. Be2 {[%clk 0:02:24]}  f5 {[%clk 0:02:10]} 20. Rfe1 {[%clk 0:02:23]}  Rae8 {[%clk 0:02:02]} 21. Bd3 {[%clk 0:02:20]}  h5 {[%clk 0:02:00]} 22. e4 {[%clk 0:02:15]}  f4 {[%clk 0:01:56]} 23. e5 {[%clk 0:02:15]}  h4 {[%clk 0:01:50]} 24. Qd2 {[%clk 0:01:54]}  Kh8 {[%clk 0:01:37]} 25. a4 {[%clk 0:01:48]}  Qg5 {[%clk 0:01:33]} 26. Rab1 {[%clk 0:01:47]}  Re7 {[%clk 0:01:29]} 27. a5 {[%clk 0:01:34]}  Rg7 {[%clk 0:01:26]} 28. Be4 {[%clk 0:01:07]}  Qh5 {[%clk 0:01:20]} 29. c4 {[%clk 0:00:57]}  Bxc4 {[%clk 0:01:09]} 30. Qb4 {[%clk 0:00:57]}  Qf7 {[%clk 0:01:10]} 31. Qd6 {[%clk 0:00:54]}  Kg8 {[%clk 0:00:56]} 32. e6 {[%clk 0:00:46]}  Bxe6 {[%clk 0:00:51]} 33. Bxc6 {[%clk 0:00:45]}  bxc6 {[%clk 0:00:51]} 34. Rxe6 {[%clk 0:00:44]}  Qd7 {[%clk 0:00:50]} 35. Qe5 {[%clk 0:00:39]}  g3 {[%clk 0:00:41]} 36. Rb8 {[%clk 0:00:26]}  gxf2+ {[%clk 0:00:40]} 37. Kxf2 {[%clk 0:00:26]}  Rxb8 {[%clk 0:00:41]} 38. Qxb8+ {[%clk 0:00:25]}  Kh7 {[%clk 0:00:42]} 39. Qe5 {[%clk 0:00:23]}  Qd5 {[%clk 0:00:40]} 40. Qxd5 {[%clk 0:00:23]}  cxd5 {[%clk 0:00:40]} 41. Re5 {[%clk 0:00:15]}  Rb7 {[%clk 0:00:33]} 42. Rxd5 {[%clk 0:00:14]}  Kg6 {[%clk 0:00:33]} 43. Kf3 {[%clk 0:00:14]}  Rb2 {[%clk 0:00:31]} 44. h3 {[%clk 0:00:14]}  Ra2 {[%clk 0:00:29]} 45. Rc5 {[%clk 0:00:10]}  Rd2 {[%clk 0:00:25]} 46. Kxf4 {[%clk 0:00:08]}  Rxd4+ {[%clk 0:00:20]} 47. Ke5 {[%clk 0:00:08]}  Rd2 {[%clk 0:00:15]} 48. Rc6+ {[%clk 0:00:09]}  Kg5 {[%clk 0:00:15]} 49. Rc8 {[%clk 0:00:09]}  Re2+ {[%clk 0:00:14]} 50. Kd4 {[%clk 0:00:08]}  Kf4 {[%clk 0:00:14]} 51. Rg8 {[%clk 0:00:07]}  Ra2 {[%clk 0:00:14]} 52. Rg4+ {[%clk 0:00:07]}  Kf5 {[%clk 0:00:14]} 53. Rxh4 {[%clk 0:00:07]}  Ra4+ {[%clk 0:00:14]} 54. Kc5 {[%clk 0:00:08]}  Rxh4 {[%clk 0:00:15]} 55. Kc6 {[%clk 0:00:07]}  Rh7 {[%clk 0:00:14]} 56. g4+ {[%clk 0:00:05]}  Kf4 {[%clk 0:00:13]} 57. Kb5 {[%clk 0:00:04]}  Kg3 {[%clk 0:00:13]} 58. Kc6 {[%clk 0:00:02]}  Kxh3 {[%clk 0:00:14]} 59. g5 {[%clk 0:00:03]}  Kg4 {[%clk 0:00:14]} 60. g6 {[%clk 0:00:03]}  Rg7 {[%clk 0:00:15]} 61. Kb5 {[%clk 0:00:03]}  Kg5 {[%clk 0:00:16]} 62. Ka6 {[%clk 0:00:03]}  Kxg6 {[%clk 0:00:17]} 63. Kb5 {[%clk 0:00:04]}  Kf5 {[%clk 0:00:17]} 64. Kc6 {[%clk 0:00:03]}  Ke5 {[%clk 0:00:18]} 65. Kb5 {[%clk 0:00:04]}  Kd5 {[%clk 0:00:19]} 66. Ka6 {[%clk 0:00:04]}  Kd6 {[%clk 0:00:19]} 67. Kb5 {[%clk 0:00:05]}  Rc7 {[%clk 0:00:19]} 68. Ka6 {[%clk 0:00:05]}  Kd7 {[%clk 0:00:20]} 69. Kb5 {[%clk 0:00:05]}  Kc8 {[%clk 0:00:20]} 70. Ka6 {[%clk 0:00:06]}  Kb8 {[%clk 0:00:21]} 71. Kb5 {[%clk 0:00:07]}  Kb7 {[%clk 0:00:21]} 72. a6+ {[%clk 0:00:07]}  Kb8 {[%clk 0:00:22]} 73. Kb4 {[%clk 0:00:07]}  Rd7 {[%clk 0:00:23]} 74. Kc5 {[%clk 0:00:07]}  Kc7 {[%clk 0:00:23]} 75. Kb5 {[%clk 0:00:07]}  Rh7 {[%clk 0:00:24]} 76. Kc5 {[%clk 0:00:08]}  Rh6 {[%clk 0:00:25]} 77. Kb5 {[%clk 0:00:08]}  Rb6+ {[%clk 0:00:26]} 78. Ka5 {[%clk 0:00:07]}  Kc6 {[%clk 0:00:27]} 79. Ka4 {[%clk 0:00:07]}  Kc5 {[%clk 0:00:27]} 80. Ka5 {[%clk 0:00:08]}  Kc4 {[%clk 0:00:27]} 81. Ka4 {[%clk 0:00:08]}  Rxa6# {[%clk 0:00:28]} 0-1

[Event "December 12 Late 2023"]
[Site "https://www.chess.com"]
[Date "2023.12.12"]
[Round "1"]
[White "Marin Posada, Sebastian"]
[Black "Yuan, Qingyu"]
[Result "0-1"]
[Board "60"]
[TimeControl "180+1"]
[WhiteFideId "4402782"]
[BlackFideId "8609772"]
[WhiteElo "2415"]
[BlackElo "2785"]
[WhiteTeam "COL"]
[BlackTeam "CHN"]
[WhiteClock "0:00:00"]
[BlackClock "0:00:03"]

1. d4 {[%clk 0:03:00]}  Nf6 {[%clk 0:02:58]} 2. c4 {[%clk 0:03:00]}  e6 {[%clk 0:02:58]} 3. Nf3 {[%clk 0:02:58]}  d5 {[%clk 0:02:58]} 4. g3 {[%clk 0:02:55]}  dxc4 {[%clk 0:02:55]} 5. Bg2 {[%clk 0:02:54]}  c5 {[%clk 0:02:51]} 6. O-O {[%clk 0:02:50]}  Nc6 {[%clk 0:02:52]} 7. Qa4 {[%clk 0:02:40]}  Bd7 {[%clk 0:02:52]} 8. dxc5 {[%clk 0:02:33]}  Bxc5 {[%clk 0:02:47]} 9. Qxc4 {[%clk 0:02:31]}  Be7 {[%clk 0:02:48]} 10. Nc3 {[%clk 0:02:27]}  Rc8 {[%clk 0:02:40]} 11. Rd1 {[%clk 0:02:18]}  O-O {[%clk 0:02:34]} 12. Bf4 {[%clk 0:02:09]}  a6 {[%clk 0:02:10]} 13. Rac1 {[%clk 0:02:03]}  Qb6 {[%clk 0:01:57]} 14. Qd3 {[%clk 0:01:46]}  Nb4 {[%clk 0:01:46]} 15. Qb1 {[%clk 0:01:42]}  Nbd5 {[%clk 0:01:45]} 16. Be5 {[%clk 0:01:36]}  Bc6 {[%clk 0:01:35]} 17. Bd4 {[%clk 0:01:19]}  Qa5 {[%clk 0:01:17]} 18. Ne5 {[%clk 0:01:13]}  Nxc3 {[%clk 0:01:10]} 19. Bxc3 {[%clk 0:01:14]}  Qb6 {[%clk 0:01:02]} 20. Nxc6 {[%clk 0:00:47]}  bxc6 {[%clk 0:01:00]} 21. Bd4 {[%clk 0:00:38]}  c5 {[%clk 0:00:57]} 22. Bc3 {[%clk 0:00:34]}  h6 {[%clk 0:00:50]} 23. Rd2 {[%clk 0:00:27]}  Rfd8 {[%clk 0:00:45]} 24. Rcd1 {[%clk 0:00:21]}  c4 {[%clk 0:00:44]} 25. Rxd8+ {[%clk 0:00:19]}  Rxd8 {[%clk 0:00:45]} 26. Rxd8+ {[%clk 0:00:19]}  Qxd8 {[%clk 0:00:39]} 27. Qc2 {[%clk 0:00:17]}  Nd5 {[%clk 0:00:26]} 28. Be1 {[%clk 0:00:17]}  Qc7 {[%clk 0:00:19]} 29. h3 {[%clk 0:00:17]}  Bf6 {[%clk 0:00:18]} 30. e4 {[%clk 0:00:15]}  Nb6 {[%clk 0:00:12]} 31. Bc3 {[%clk 0:00:13]}  Bxc3 {[%clk 0:00:09]} 32. Qxc3 {[%clk 0:00:14]}  Qc5 {[%clk 0:00:09]} 33. Bf1 {[%clk 0:00:11]}  a5 {[%clk 0:00:08]} 34. b3 {[%clk 0:00:11]}  Qa3 {[%clk 0:00:05]} 35. Bxc4 {[%clk 0:00:07]}  Qxa2 {[%clk 0:00:05]} 36. Bb5 {[%clk 0:00:00]}  Qb1+ {[%clk 0:00:03]} 0-1